Cogmind - Beta 12 X1 @@@ ROGUE MODE // 2022.08.13 @ 17:38:22 Player: Momo Result: Destroyed by Y-45 Defender with Beam Rifle Performance ------------- Evolutions (1) 500 Regions Visited (3) 600 Robots Destroyed (18) 90 Value Destroyed (470) 470 Prototype IDs (4) 80 Alien Tech Used (0) 0 Bonus (480) 480 TOTAL SCORE: 2220 Bonus ------- Pacifist 200 Follower Combat Kills 280 Cogmind --------- Core Integrity 0/400 Matter 300/300 Energy 250/250 System Corruption 0% Temperature Cool (9) Movement Flying (31) Location -9/Storage Parts ------- > --- POWER (1) -------- Ion Engine > --- PROPULSION (4) --- Improved Flight Unit Improved Flight Unit Improved Flight Unit Improved Flight Unit > --- UTILITY (2) ------ Salvage Targeting Computer Hacking Suite > --- WEAPON (2) ------- Heavy Hammer > --- INVENTORY (5) ---- Medium Storage Unit Improved EM Shotgun Mini Grenade Launcher Mini Grenade Launcher Mini Grenade Launcher Peak State ------------ > --- POWER ------------ (None) > --- PROPULSION ------- Improved Flight Unit Improved Flight Unit Improved Flight Unit Improved Flight Unit > --- UTILITY ---------- Hacking Suite Hacking Suite > --- WEAPON ----------- Improved EM Shotgun Heavy Hammer > --- INVENTORY -------- Medium Storage Unit Improved EM Shotgun Mini Grenade Launcher Mini Grenade Launcher Mini Grenade Launcher [Rating: 24] Favorites ----------- Power Ion Engine Engine Ion Engine Propulsion Improved Flight Unit Treads Light Treads Leg Aluminum Leg Wheel Compact Wheel Flight Unit Improved Flight Unit Utility Hacking Suite Storage Small Storage Unit Processor Salvage Targeting Computer Hackware Hacking Suite Protection Light Armor Plating Weapon Heavy Assault Rifle Energy Gun Improved EM Shotgun Ballistic Gun Heavy Assault Rifle Impact Weapon Heavy Hammer Build | -11 -10 -9 -9 ------- Run | Scr Mat Mat Sto Slots Evolved 2 | . . 2 . Power . | . . . . Propulsion 2 | . . 2 . Utility . | . . . . Weapon . | . . . . Parts Attached 29 | 6 . 12 11 Power 2 | 1 . . 1 Engine 2 | 1 . . 1 Core . | . . . . Reactor . | . . . . Propulsion 13 | 2 . 5 6 Treads 3 | . . 1 2 Leg 1 | . . 1 . Wheel 5 | 2 . 3 . Hover . | . . . . Flight 4 | . . . 4 Utility 6 | 1 . 4 1 Device . | . . . . Storage 1 | 1 . . . Processor 1 | . . . 1 Hackware 2 | . . 2 . Protection 2 | . . 2 . Artifact . | . . . . Weapon 8 | 2 . 3 3 Energy Gun 5 | 1 . 2 2 Energy Cannon . | . . . . Ballistic Gun 2 | 1 . 1 . Ballistic Cannon . | . . . . Launcher . | . . . . Special Weapon . | . . . . Impact Weapon 1 | . . . 1 Slashing Weapon . | . . . . Piercing Weapon . | . . . . Special Melee Weapon . | . . . . Unidentified Prototypes 2 | . . . 2 Parts Lost 12 | . 1 10 1 Power 1 | . . 1 . Propulsion 5 | . 1 4 . Utility 2 | . . 2 . Weapon 4 | . . 3 1 Highest Loss Streak 7 | . 1 7 1 To Critical Strikes . | . . . . Average Slot Usage (%) 74 | . 76 58 84 Engine 6 | . 14 6 5 Treads 4 | . . 5 4 Leg 3 | . . 3 3 Wheel 9 | . 22 13 2 Flight 14 | . . . 29 Storage 1 | . 11 . . Processor 2 | . . . 4 Hackware 9 | . . 2 17 Protection 2 | . . 8 . Energy Gun 9 | . 14 10 6 Ballistic Gun 6 | . 14 8 1 Impact Weapon 3 | . . . 7 Naked Turns . | . . . . Heaviest Build 17 | 14 14 17 8 Greatest Support 42 | 26 26 42 40 Greatest Overweight (x) 2 | . . 2 1 Average Overweight (x) . | . . . . Largest Inventory Capacity 8 | 8 8 5 5 Average Capacity 5 | 6 7 5 5 Most Carried 5 | . 1 2 5 Average Carried 2 | . . 1 3 Final Capacity 8 | 8 5 5 5 Final Carried 5 | . 1 2 5 Class Distribution -------------------- 24% | Mutant 23% | Scavenger-Mutant 20% | Hacker-Mutant 19% | Sprinter 12% | Hacker-Sprinter Dominant Class ---------------- Mutant | -10/Materials Scavenger-Mutant | -9/Materials Sprinter | -9/Storage Resources | -11 -10 -9 -9 ----------- Run | Scr Mat Mat Sto Matter Collected 590 | 140 . 301 149 Remotely . | . . . . Salvage Created 799 | . . 537 262 Parts 40 | . . 27 13 Haulers Intercepted 2 | . . . 2 Recyclers Shooed 1 | . . 1 . Parts Field Recycled . | . . . . Retrieved Matter . | . . . . Parts Self-Destructed . | . . . . Prevented . | . . . . Kills | -11 -10 -9 -9 ------- Run | Scr Mat Mat Sto Combat Hostiles Destroyed 10 | . . 7 3 Melee 1 | . . . 1 Guns 9 | . . 7 2 Classes Destroyed 8 | . . 5 3 Worker 1 | . . . 1 Builder 1 | . . 1 . Hauler 2 | . . . 2 Recycler 2 | . . 2 . Operator 1 | . . . 1 Watcher 1 | . . 1 . Grunt 7 | . . 5 2 Sentry 3 | . . 2 1 Best Kill Streak 3 | . . 3 3 Combat Bots Only 2 | . . 2 2 Max Kills in Single Turn 1 | . . 1 1 Gunslinging . | . . . . Exploded . | . . . . Melee 1 | . . . 1 Uniques/NPCs Destroyed . | . . . . Combat | -11 -10 -9 -9 -------- Run | Scr Mat Mat Sto Damage Taken 1483 | . 230 983 270 Core 452 | . 48 317 87 Absorbed by Shields . | . . . . Core Remaining (%) 90 | 100 80 . . Volleys Fired 55 | . . 46 9 Largest 2 | . . 2 2 Hottest 90 | . . 88 90 Shots Fired 88 | . . 70 18 Gun 88 | . . 70 18 Cannon . | . . . . Launcher . | . . . . Special . | . . . . Kinetic 50 | . . 42 8 Thermal 30 | . . 28 2 Explosive . | . . . . Electromagnetic 8 | . . . 8 Robot Hit Streak 6 | . . 6 6 Robot Miss Streak 6 | . . 3 6 Penetration Max . | . . . . Secondary Targets . | . . . . Shots Hit Robots 63 | . . 45 18 Core Hits 25 | . . 17 8 Critical Kills . | . . . . Critical Parts Destroyed 3 | . . 1 2 Critical Strikes 4 | . . 2 2 Burn 1 | . . 1 . Destroy 1 | . . 1 . Smash 2 | . . . 2 Melee Attacks 13 | . . . 13 Impact 13 | . . . 13 Slashing . | . . . . Piercing . | . . . . Sneak Attacks 1 | . . . 1 Combat Hostiles . | . . . . Follow-up Attacks . | . . . . Damage Inflicted 1256 | . . 747 509 Guns 942 | . . 747 195 Cannons . | . . . . Explosions . | . . . . Melee 314 | . . . 314 Ramming . | . . . . Kinetic 511 | . . 430 81 Thermal 328 | . . 317 11 Explosive . | . . . . Electromagnetic 103 | . . . 103 Impact 314 | . . . 314 Slashing . | . . . . Piercing . | . . . . Highest Corruption . | . . . . Average Corruption . | . . . . Corruption Purged . | . . . . Corruption Blocked . | . . . . Overload Shots . | . . . . Overflow Damage 98 | . . . 98 Projectiles . | . . . . Explosions . | . . . . Melee 98 | . . . 98 Knockbacks 2 | . . . 2 Impact 2 | . . . 2 Kinetic . | . . . . Secondary . | . . . . Self-Inflicted Damage . | . . . . Shots . | . . . . Rammed . | . . . . Targets Rammed . | . . . . Kicked . | . . . . Crushed . | . . . . Highest Temperature 385 | . 1 385 6 Average Temperature 138 | . 1 146 4 Received Heat Transfer 759 | . 126 492 141 Effects 1 | . . 1 . Interference 1 | . . 1 . Siege Activations . | . . . . Robots Corrupted . | . . . . Combat Hostiles . | . . . . Parts Fried 3 | . . . 3 Impact Corruptions 4 | . . . 4 Robots Melted . | . . . . Combat Hostiles . | . . . . Parts Melted 1 | . . 1 . Heat Transferred 854 | . . 829 25 Parts Sabotaged . | . . . . Parts Stolen . | . . . . Parts Stripped . | . . . . Power Chain Reactions . | . . . . Missiles Intercepted . | . . . . Alert | -11 -10 -9 -9 ------- Run | Scr Mat Mat Sto Peak Influence 653 | . 70 201 653 Initial 76 | . . 29 76 Average 167 | . 23 123 260 Maximum Alert Level 2 | . . 1 2 Low Security (%) 79 | 100 100 98 56 Level 1 7 | . . 1 15 Level 2 13 | . . . 27 Level 3 . | . . . . Level 4 . | . . . . Level 5 . | . . . . High Security . | . . . . Max Security . | . . . . Squads Dispatched 3 | . . . 3 Investigation . | . . . . Extermination . | . . . . Reinforcement 2 | . . . 2 Assault . | . . . . Garrison 1 | . . . 1 Intercept . | . . . . Searches Triggered . | . . . . Construction Impeded . | . . . . Haulers Reinforced . | . . . . Active Scanning Responses . | . . . . Cargo Convoy Interrupts . | . . . . Stealth | -11 -10 -9 -9 --------- Run | Scr Mat Mat Sto Distress Signals 4 | . . 2 2 Communications Jammed . | . . . . Distress Signals . | . . . . Times Spotted 39 | . 8 12 19 Peak Tracking Total 7 | . 7 5 7 Tactical Retreats 2 | . 1 . 1 Traps | -11 -10 -9 -9 ------- Run | Scr Mat Mat Sto Traps Triggered . | . . . . Indirectly . | . . . . Trap Hack Attempts . | . . . . Triggered . | . . . . Disarmed . | . . . . Reprogrammed . | . . . . Reused . | . . . . Traps Extracted . | . . . . Installed . | . . . . Triggered . | . . . . Machines | -11 -10 -9 -9 ---------- Run | Scr Mat Mat Sto Machines Disabled 3 | . . . 3 Max in Single Turn 1 | . . . 1 Machines Sabotaged . | . . . . Garrisons Compromised . | . . . . Overloaded Fab Kills . | . . . . Hacking | -11 -10 -9 -9 --------- Run | Scr Mat Mat Sto Machines Accessed 3 | . 2 . 1 Terminals 3 | . 2 . 1 Fabricators . | . . . . Repair Stations . | . . . . Recycling Units . | . . . . Scanalyzers . | . . . . Garrison Access . | . . . . Total Hacks 8 | . 6 . 2 Successful 4 | . 3 . 1 Failed 4 | . 3 . 1 Catastrophic 1 | . 1 . . Database Lockouts . | . . . . Manual 1 | . 1 . . Terminals 8 | . 6 . 2 Fabricators . | . . . . Repair Stations . | . . . . Recycling Units . | . . . . Scanalyzers . | . . . . Garrison Access . | . . . . Terminal Hacks 4 | . 3 . 1 Robot Analysis 1 | . 1 . . Prototype ID Bank 1 | . 1 . . Open Door 1 | . . . 1 Registered Components 1 | . 1 . . Fabricator Hacks . | . . . . Repair Station Hacks . | . . . . Recycling Unit Hacks . | . . . . Scanalyzer . | . . . . Garrison Access Hacks . | . . . . Unauthorized Hacks . | . . . . Terminals . | . . . . Fabricators . | . . . . Repair Stations . | . . . . Recycling Units . | . . . . Scanalyzers . | . . . . Garrison Access . | . . . . Data Cores Recovered . | . . . . Used . | . . . . Hacking Detections 2 | . 2 . . Full Trace Events . | . . . . Feedback Events . | . . . . Feedback Blocked . | . . . . Robot Schematics Acquired . | . . . . Robots Built . | . . . . Authchips . | . . . . Time . | . . . . Total Robot Build Rating . | . . . . Part Schematics Acquired . | . . . . Parts Built . | . . . . Authchips . | . . . . Time . | . . . . Total Part Build Rating . | . . . . Parts Repaired . | . . . . Time . | . . . . Parts Recycled . | . . . . Recycled Matter . | . . . . Retrieved Matter . | . . . . Retrieved Components . | . . . . Parts Scanalyzed . | . . . . Part Schematics Acquired . | . . . . Parts Damaged . | . . . . Bothacking | -11 -10 -9 -9 ------------ Run | Scr Mat Mat Sto Used RIF Installer . | . . . . Robots Hacked . | . . . . Non-combat . | . . . . Combat . | . . . . Robot Hacks Applied . | . . . . Relay Couplers Released . | . . . . Fabnet Peak Effective % . | . . . . Robots Rewired . | . . . . Allies Hacked . | . . . . Hacks Repelled . | . . . . Allies | -11 -10 -9 -9 -------- Run | Scr Mat Mat Sto Total Allies 2 | . . . 2 Largest Group 1 | . . . 1 Highest-Rated Group 100 | . . . 100 Highest-Rated Ally 100 | . . . 100 Total Orders . | . . . . Ally Attacks 25 | . . . 25 Total Damage 845 | . . . 845 Kills 14 | . . . 14 Allies Corrupted . | . . . . Allies Melted . | . . . . Intel | -11 -10 -9 -9 ------- Run | Scr Mat Mat Sto Robot Analysis Total 1 | . 1 . . Derelict Logs Recovered . | . . . . Drone Launches . | . . . . Drone Recoveries . | . . . . Exploration | -11 -10 -9 -9 ------------- Run | Scr Mat Mat Sto Turns Passed 810 | 37 119 271 383 Spaces Moved 571 | 32 126 143 270 Core 14 | 1 . 13 . Treads 50 | . . 9 41 Legs . | . . . . Wheels 313 | 31 126 121 35 Hover . | . . . . Flight 194 | . . . 194 Fastest Speed 31 | 50 90 80 31 Average Speed 76 | 88 93 95 57 Slowest Speed 160 | 90 100 160 160 Overloaded Moves . | . . . . Propulsion Burnouts . | . . . . Robots Hopped . | . . . . Cave-ins Triggered . | . . . . Exploration Rate (%) 27 | 5 34 13 56 Regions Visited 3 Branch Regions 1 Pre-discovered Areas . | . . . . Known Exits Taken . | . . . . Unknown Exits Taken 3 | 1 1 1 . Scrap Searched . | . . . . Spaces Dug . | . . . . Terrain Destroyed . | . . . . Melee . | . . . . Projectile . | . . . . AOE . | . . . . Terrain Rammed . | . . . . Walls Destroyed . | . . . . Machines Disabled . | . . . . Actions | -11 -10 -9 -9 --------- Run | Scr Mat Mat Sto Total 822 | 37 127 201 457 Wait 144 | . . . 144 Move 568 | 31 125 142 270 Hop . | . . . . Pick Up 5 | . 1 1 3 Fast Attach 28 | 6 . 12 10 Attach . | . . . . Detach . | . . . . Swap 1 | . . . 1 Drop 8 | . 1 . 7 Fire 55 | . . 46 9 Melee 13 | . . . 13 Ram . | . . . . Kick . | . . . . Crush . | . . . . Escape Stasis . | . . . . Rewire . | . . . . Trap . | . . . . Miscellaneous . | . . . . Route ------- -11/Scrapyard -10/Materials -9/Materials -9/Storage (discovered 1 exit: [*Mat]) History --------- Turn | Location | Event 21 | -11/Scrapyard | Discovered new exit (range 16) 38 | -11/Scrapyard | Entered Materials 111 | -10/Materials | Discovered new exit (range 15) 157 | -10/Materials | Entered another Materials area 157 | -9/Materials | Evolved 2 slots: Propulsion x2 219 | -9/Materials | Lost 3 parts (1n2w) 310 | -9/Materials | Core integrity fell below 50% 382 | -9/Materials | Lost 7 parts (1p3n2u1w) 416 | -9/Materials | Discovered new exit (range 6) 428 | -9/Materials | Entered Storage 461 | -9/Storage | Core integrity fell below 20% 645 | -9/Storage | Discovered new exit (range 15) 651 | -9/Storage | Met 01-MTF 763 | -9/Storage | Garrison activated, responded to threat 811 | -9/Storage | Destroyed by Y-45 Defender with Beam Rifle Last Messages --------------- 00701_ U-05 Engineer builds a Wall. 00710_ U-05 Engineer lays Concrete. 00710_ K-01 Serf collects debris. 00712_ U-05 Engineer lays Concrete. 00715_ Connecting with Door Terminal... 00715_ Current location identified: Storage >>Open(Door) Sealed Heavy Doors opened. 00749_ K-01 Serf cleans the Compression Vault. 00763_ ALERT: Activating Garrison Access S001. 00765_ U-05 Engineer destroyed. 00765_ G-34 Mercenary destroyed. 00765_ K-01 Serf collects debris. 00768_ ALERT: Hostiles spotted, dispatching reinforcements to Terminal S011. 00769_ K-01 Serf collects debris. 00790_ 01-MTF suffers critical hit (Burn). 00794_ 01-MTF heat spikes uncontrollably. 00797_ 01-MTF heat damages core (-28). 00809_ K-01 Serf collects debris. Map ----- +----------------------------------------------------+ | #??????? #????????????????????????????? | | #??????? #????????????????????????????? | | #??????? #????????????????????????????? | | +??????? ?????????????????????????????? | | #???????????????????????????????????????? | | #???????????????????????????????????????? | | #??????? ?????????????????????????????? | | + ?????# ?????????????????????????????? | | +#####???# ???????????? ??????????????? | | #???# #??????????? #?????????????? | | "" #???# #??????????? #?????????????? | | ?? #???# #??????????? #?????????????? | | ??? #???# #??????????# #?????????????? | | ???? #???# #??????????# #?????????????? | | ?????#???# +??????????# #??????#??????? | | """ #???# #??????????# #????# ##?????? | | #???# #??????????# #???? ??????? | | ########## #??????????# #???! ???????? | | + ## ##????????## [##?a ????????? | | ### # ########## %!# ?????????? | | ??# # "" % !%# "??????????? | | #?# %+ [ =%= !% ; ???????????? | | #?# """*#[ *% % ! #????????????? | | #?# """ #= = """####### [k!#????????????? | | #?# """ ###""#####????####Y###????????????? | | #?# # ???????#T[@=#??????????????? | | #?# """ # ?????## %!#??????????????? | | #?# """ # """" """"????#===#??????????????? | | #?# """ # """" """"????#===#??????????????? | | #?# ? # """" """"????#####??????????????? | | ???#??### """" """????????????????????????? | | ????????# ????? ?????????????????????????? | | ?????????#?????#??????????????????????????? | | | | | | | | | | | | | | | | | | | | | | | | | | | | | | | | | | | +----------------------------------------------------+ Best States ------------- Heat Dissipation 28 Energy Generation 10 Energy Capacity 250 Matter Stores 300 Matter Capacity 300 Sight Range 16 Terrain Scan Density 10 Armor Coverage 300 Evasion (%) 63 Recoil Reduction 2 Salvage Targeting 1 Offensive Hacking 20 Item Schematics ----------------- None Robot Schematics ------------------ None Fabricated ------------ Nothing Alien Tech Used ----------------- None Achievements -------------- None Challenges ------------ None Game ------ Seed CatalystMetafiberField Manual? 1 Play Time 00:11:55 Cumulative 313.9 hours Start 2022.08.13 @ 17:30:33 End 2022.08.13 @ 17:38:22 Sessions 1 Manual Loads 0 Difficulty Rogue Special Mode None Game No. 155 Rogue 151 Adventurer 0 Explorer 4 Win Type - Total 16 Types 4/0/2/4/1/2/3/0/0 Lore% 77 Gallery% 84 Achievement% 75 Wizard Run 0 Options --------- ASCII 0 Keyboard 0 Movement Mouse Keybinds 0 Fullscreen 1 Font 18/SmallcapsGlow Map View 76x50 Tactical HUD 1 Map Filters NONE Filters NONE Steam 1 RUN: 0ce35a20-d05e-4518-b183-2175c9109a30